bitfinex/quotes_SOLUSD_20251103
["timestamp","ask_amount","ask_price","bid_price","bid_amount"]
[1762137706008,1e-08,184.16,184.15,5.43035568]
[1762137707135,1e-08,184.16,184.15,10.31988284]
[1762137708124,0.2,184.21,184.16,0.72]
[1762137708326,0.2,184.21,184.19,4.16952716]
[1762137708946,0.2,184.21,184.17,4.16952716]
[1762137709128,0.2,184.21,184.19,0.72]
[1762137709321,0.2,184.21,184.2,5.42888165]
[1762137710910,0.52,184.29,184.21,0.72]
[1762137711121,4.68952716,184.29,184.23,4.16952716]
[1762137711348,20.592,184.28,184.23,4.16952716]
[1762137711533,20.592,184.28,184.24,18.99696048]
[1762137711718,21.112,184.28,184.24,18.99696048]
[1762137711913,0.72,184.3,184.24,23.88648764]
[1762137712117,25.48152716,184.3,184.24,23.88648764]
[1762137712332,27.58081283,184.3,184.24,25.98577331]
[1762137712931,6.98881283,184.3,184.24,25.98577331]
[1762137713127,27.06081283,184.3,184.24,18.99696048]
[1762137713446,6.26881283,184.27,184.24,18.99696048]
[1762137713830,6.78881283,184.27,184.24,18.99696048]
[1762137714426,6.78881283,184.27,184.22,18.99902289]
[1762137715041,0.52,184.27,184.22,18.99902289]
[1762137715236,6.78881283,184.27,184.22,19.71902289]
[1762137715543,6.26881283,184.24,184.22,18.99902289]
[1762137715749,6.78881283,184.24,184.22,18.99902289]
[1762137715943,6.26881283,184.24,184.22,18.99902289]
[1762137716130,6.78881283,184.24,184.22,18.99902289]
[1762137716332,6.26881283,184.24,184.22,5.42829225]
[1762137716645,6.78881283,184.24,184.19,13.57226106]
[1762137717352,6.78881283,184.24,184.19,14.29226106]
[1762137717824,20.592,184.27,184.19,20.56107389]
[1762137718029,6.26881283,184.25,184.19,20.56107389]
[1762137718422,6.26881283,184.25,184.19,25.99025028]
[1762137719637,6.78881283,184.25,184.19,25.99025028]
[1762137719955,6.26881283,184.24,184.19,19.72143745]
[1762137720124,6.26881283,184.23,184.19,19.00143745]
[1762137720320,6.26881283,184.23,184.19,19.72143745]
[1762137720769,20.592,184.27,184.17,5.42976597]
[1762137720770,6.26881283,184.2,184.17,5.42976597]
[1762137720932,6.26881283,184.19,184.17,5.42976597]
[1762137721128,6.26881283,184.2,184.17,19.00418091]
[1762137721732,20.592,184.24,184.17,5.42976597]
[1762137721733,6.78881283,184.19,184.17,5.42976597]
[1762137722250,6.26881283,184.18,184.17,5.42976597]
[1762137722452,6.78881283,184.18,184.12,46.16508045]
[1762137722658,6.26881283,184.17,184.12,19.72934172]
[1762137723658,0.52,184.17,184.12,19.72934172]
[1762137723834,6.78881283,184.17,184.12,19.00934172]
[1762137724030,20.592,184.21,184.12,19.72934172]
[1762137724222,6.26881283,184.17,184.12,19.00934172]
[1762137724744,6.26881283,184.17,184.12,19.72934172]
[1762137725353,6.26881283,184.13,184.05,34.15469079]
[1762137725540,6.26881283,184.13,184.06,0.72]
[1762137725541,6.26881283,184.12,184.06,0.72]
[1762137725739,21.112,184.13,184.08,13.58047861]
[1762137725941,6.26881283,184.11,184.08,13.58047861]
[1762137726823,20.592,184.13,184.08,13.58047861]
[1762137726824,6.26881283,184.1,184.08,13.58047861]
[1762137727146,6.26881283,184.1,184.07,5.43271581]
[1762137727147,6.26881283,184.09,184.07,5.43271581]
[1762137727360,0.52,184.12,184.07,5.43271581]
[1762137727527,6.26881283,184.09,184.07,19.01450534]
[1762137727944,0.52,184.11,184.07,19.01450534]
[1762137727945,6.26881283,184.1,184.07,19.01450534]
[1762137728180,20.592,184.13,184.07,19.01450534]
[1762137728474,20.592,184.13,184.09,6.26881283]
[1762137728846,20.592,184.13,184.1,19.01140683]
[1762137729478,21.112,184.13,184.1,5.43183052]
[1762137729769,20.592,184.13,184.1,5.43183052]
[1762137730160,0.52,184.12,184.1,5.43183052]
[1762137730365,6.78881283,184.12,184.1,5.43183052]
[1762137730863,20.592,184.13,184.1,5.43183052]
[1762137731056,27.38081283,184.13,184.08,19.01347239]
[1762137731546,27.38081283,184.13,184.09,0.67]
[1762137731547,20.592,184.13,184.09,0.67]
[1762137731750,20.592,184.13,184.08,25.95228522]
[1762137732273,0.52,184.12,184.08,19.01347239]
[1762137732453,26.86081283,184.13,184.08,19.01347239]
[1762137732454,27.38081283,184.13,184.08,19.01347239]
[1762137732653,21.112,184.13,184.08,25.95228522]
[1762137732852,20.592,184.13,184.08,19.01347239]
[1762137733056,20.592,184.13,184.1,19.01140683]
[1762137733253,20.592,184.13,184.1,25.28021966]
[1762137733452,20.81604237,184.22,184.12,6.26881283]
[1762137733453,16.57764052,184.22,184.12,6.26881283]
[1762137733660,0.52,184.22,184.17,6.26881283]
[1762137733853,6.78881283,184.22,184.16,6.26881283]
[1762137734168,20.592,184.19,184.15,6.26881283]
[1762137734579,20.592,184.19,184.16,0.67]
[1762137734967,20.592,184.19,184.14,19.00727706]
[1762137735164,20.592,184.19,184.15,6.26881283]
[1762137735368,20.592,184.19,184.15,6.93881283]
[1762137735961,20.592,184.19,184.16,0.67]
[1762137736476,20.592,184.19,184.16,6.93881283]
[1762137736852,6.26881283,184.22,184.16,6.93881283]
[1762137737176,20.592,184.19,184.16,19.00521285]
[1762137738561,6.26881283,184.24,184.17,6.93881283]
[1762137738761,20.592,184.21,184.17,6.93881283]
[1762137739287,20.592,184.21,184.18,5.42947116]
[1762137740084,0.52,184.24,184.18,5.42947116]
[1762137740085,20.592,184.19,184.18,5.42947116]
[1762137741672,6.78881283,184.21,184.16,19.00521285]
[1762137741982,26.86081283,184.21,184.16,5.43006081]
[1762137742173,21.112,184.21,184.16,25.94402568]
[1762137742574,27.38081283,184.21,184.16,19.67521285]
[1762137742889,21.112,184.21,184.16,19.67521285]
[1762137743095,21.112,184.21,184.16,25.94402568]
[1762137743772,27.38081283,184.21,184.16,19.00521285]
[1762137744289,27.38081283,184.21,184.16,19.67521285]
[1762137744589,20.592,184.21,184.17,6.93881283]
[1762137744958,20.592,184.21,184.18,0.67]
[1762137745675,0.52,184.2,184.18,5.42947116]
[1762137745883,6.78881283,184.2,184.18,5.42947116]
[1762137746193,0.52,184.19,184.18,5.42947116]
[1762137746509,6.78881283,184.19,184.14,5.43065059]
[1762137746791,6.26881283,184.16,184.14,5.43065059]
[1762137747090,20.592,184.2,184.14,5.43065059]
[1762137747091,6.26881283,184.17,184.14,5.43065059]
[1762137747478,6.78881283,184.18,184.14,5.43065059]
[1762137747677,6.78881283,184.18,184.13,13.57731116]
[1762137747872,0.52,184.17,184.13,13.57731116]
[1762137748571,16.57764052,184.19,184.14,0.66]
[1762137748772,0.52,184.19,184.15,6.26881283]
[1762137748978,0.52,184.19,184.14,6.92881283]
[1762137749190,26.86081283,184.2,184.14,0.66]
[1762137749393,26.86081283,184.2,184.14,6.92881283]
[1762137749571,20.592,184.2,184.16,19.00521285]
[1762137749894,21.112,184.2,184.16,19.00521285]
[1762137750191,27.38081283,184.2,184.16,19.00521285]
[1762137750770,6.26881283,184.17,184.14,5.43065059]
[1762137750969,26.86081283,184.15,184.11,5.43153549]
[1762137751392,27.38081283,184.15,184.11,5.43153549]
[1762137751597,26.86081283,184.15,184.11,6.09153549]
[1762137752399,20.592,184.15,184.11,6.09153549]
[1762137753405,6.26881283,184.14,184.1,5.43183052]
[1762137753611,6.78881283,184.14,184.1,5.43183052]
[1762137753767,6.26881283,184.13,184.1,5.43183052]
[1762137753974,6.78881283,184.13,184.1,5.43183052]
[1762137754387,6.26881283,184.13,184.1,5.43183052]
[1762137754702,6.26881283,184.14,184.1,5.43183052]
[1762137754876,6.26881283,184.14,184.1,19.67140683]
[1762137755078,0.52,184.15,184.1,19.67140683]
[1762137755287,6.78881283,184.15,184.1,19.01140683]
[1762137755480,26.86081283,184.14,184.1,5.43183052]
[1762137755800,27.38081283,184.14,184.1,5.43183052]
[1762137756504,23.14618394,184.14,184.1,5.43183052]
[1762137756685,2.55418394,184.12,184.1,5.43183052]
[1762137756888,2.55418394,184.11,184.1,5.43183052]
[1762137757082,23.14618394,184.11,184.1,5.43183052]
[1762137757619,3.07418394,184.11,184.07,5.43271581]
[1762137757790,3.07418394,184.1,184.07,5.43271581]
[1762137757987,2.55418394,184.09,184.07,5.43271581]
[1762137758197,2.55418394,184.1,184.07,19.01450534]
[1762137758409,6.28279418,184.11,184.07,19.01450534]
[1762137758801,21.112,184.12,184.07,5.43271581]
[1762137758802,6.80279418,184.1,184.07,5.43271581]
[1762137759187,6.28279418,184.1,184.07,5.43271581]
[1762137759396,20.592,184.1,184.07,5.43271581]
[1762137759697,20.592,184.1,184.07,0.7]
[1762137760508,27.39479418,184.1,184.06,19.0155384]
[1762137760900,26.87479418,184.1,184.07,0.7]
[1762137761088,20.592,184.1,184.07,0.7]
[1762137761612,20.592,184.1,184.08,5.43242068]
[1762137761816,61.1073253,184.18,184.08,25.29626657]
[1762137761990,9.78882769,184.19,184.12,6.28279418]
[1762137762196,6.28279418,184.19,184.09,0.7]
[1762137762381,6.28279418,184.2,184.14,6.28279418]
[1762137762882,6.28279418,184.19,184.13,6.98279418]
[1762137763191,26.87479418,184.19,184.13,6.98279418]
[1762137763387,6.28279418,184.19,184.13,6.98279418]
[1762137763602,6.28279418,184.19,184.15,19.0062449]
[1762137763990,6.28279418,184.19,184.15,19.7062449]
[1762137764311,6.28279418,184.19,184.15,19.0062449]
[1762137764696,6.28279418,184.19,184.15,19.7062449]
[1762137765219,20.592,184.2,184.15,5.43035568]
[1762137765220,6.28279418,184.17,184.15,5.43035568]
[1762137765418,6.28279418,184.18,184.15,5.43035568]
[1762137765710,6.28279418,184.18,184.15,13.57588922]
[1762137765919,6.80279418,184.18,184.15,13.57588922]
[1762137766086,6.80279418,184.18,184.14,5.43065059]
[1762137766284,50.0,184.21,184.14,5.43065059]
[1762137766285,6.28279418,184.15,184.14,5.43065059]
[1762137766491,6.28279418,184.15,184.13,5.4309061]
[1762137766987,6.80279418,184.15,184.13,5.4309061]
[1762137767587,6.80279418,184.15,184.1,5.43183052]
[1762137767825,6.28279418,184.13,184.1,5.43183052]
[1762137768011,6.28279418,184.12,184.1,5.43183052]
[1762137768419,27.39479418,184.11,184.09,5.43208198]
[1762137768595,6.28279418,184.1,184.06,5.43301097]
[1762137769006,6.28279418,184.1,184.06,6.13301097]
[1762137769303,6.28279418,184.09,184.06,6.13301097]
[1762137770226,26.87479418,184.1,184.07,0.7]
[1762137770519,20.592,184.1,184.07,0.7]
[1762137771912,20.592,184.1,184.08,5.43242068]
[1762137774937,9.78882769,184.15,184.09,0.7]
[1762137775108,20.592,184.12,184.09,0.7]
[1762137775423,9.78882769,184.15,184.09,0.7]
[1762137775734,20.592,184.12,184.09,0.7]
[1762137776412,20.592,184.12,184.1,5.43183052]
[1762137777006,20.592,184.12,184.1,6.13183052]
[1762137777405,20.592,184.1,184.05,0.7]
[1762137777802,24.75556071,184.1,184.05,0.7]
[1762137778520,24.75556071,184.1,184.06,19.0155384]
[1762137779115,24.75556071,184.1,184.07,0.7]
[1762137779313,24.75556071,184.1,184.06,19.0155384]
[1762137779621,24.75556071,184.1,184.06,19.7155384]
[1762137780208,24.75556071,184.1,184.06,6.13301097]
[1762137780514,24.75556071,184.1,184.08,5.43242068]
[1762137780926,0.52,184.18,184.09,4.16356071]
[1762137781111,0.52,184.18,184.1,4.86356071]
[1762137781112,4.16356071,184.16,184.1,4.86356071]
[1762137781508,4.16356071,184.16,184.11,0.7]
[1762137781709,4.16356071,184.15,184.1,0.7]
[1762137781923,4.16356071,184.14,184.1,0.7]
[1762137782825,4.16356071,184.14,184.11,19.01037422]
[1762137783221,4.16356071,184.15,184.11,19.71037422]
[1762137783531,4.16356071,184.15,184.12,0.7]
[1762137783735,20.592,184.16,184.12,0.7]
[1762137783907,4.16356071,184.19,184.13,4.16356071]
[1762137784108,0.52,184.22,184.14,4.16356071]
[1762137784333,16.32964102,184.24,184.2,1.63248062]
[1762137784519,1.63248062,184.26,184.21,0.7]
[1762137784721,22.22448062,184.26,184.21,0.7]
[1762137784909,22.74448062,184.26,184.2,1.63248062]
[1762137785228,1.63248062,184.25,184.2,19.70101343]
[1762137785706,1.63248062,184.24,184.18,1.63248062]
[1762137785907,1.63248062,184.25,184.21,0.7]
[1762137786120,20.592,184.26,184.21,0.7]
[1762137786318,4.15632469,184.27,184.21,4.85632469]
[1762137786714,20.592,184.26,184.21,4.85632469]
[1762137786917,20.592,184.26,184.22,18.99902289]
[1762137787105,4.15632469,184.28,184.22,23.81534758]
[1762137787331,59.78882769,184.29,184.22,23.81534758]
[1762137787516,60.30882769,184.29,184.22,23.15534758]
[1762137787718,20.592,184.26,184.23,0.66]
[1762137789131,20.592,184.26,184.24,5.42770299]
[1762137789329,24.74832469,184.26,184.24,5.42770299]
[1762137789511,4.67632469,184.25,184.19,14.23246245]
[1762137789831,4.15632469,184.22,184.19,14.23246245]
[1762137790039,0.52,184.25,184.2,19.00108577]
[1762137790216,4.15632469,184.24,184.2,19.66108577]
[1762137790419,4.15632469,184.23,184.2,19.00108577]
[1762137790628,4.15632469,184.24,184.2,19.00108577]
[1762137790842,4.15632469,184.24,184.21,0.66]
[1762137791138,4.15632469,184.24,184.2,19.00108577]
[1762137791828,4.15632469,184.23,184.2,19.00108577]
[1762137792232,21.112,184.26,184.2,19.00108577]
[1762137792417,4.15632469,184.22,184.2,19.00108577]
[1762137792616,4.15632469,184.23,184.2,19.00108577]
[1762137793254,24.74832469,184.21,184.17,19.00329682]
[1762137793411,4.15632469,184.2,184.17,19.00329682]
[1762137793613,24.74832469,184.21,184.18,0.66]
[1762137793813,20.592,184.21,184.18,0.66]
[1762137794112,24.74832469,184.21,184.18,0.66]
[1762137794308,20.592,184.21,184.18,0.66]
[1762137796524,20.592,184.21,184.18,4.81632469]
[1762137796846,73.59085791,184.28,184.21,19.00005427]
[1762137797152,73.59085791,184.28,184.23,4.15632469]
[1762137797446,73.59085791,184.28,184.24,4.15632469]
[1762137797613,73.59085791,184.28,184.22,0.66]
[1762137797817,73.59085791,184.28,184.23,4.15632469]
[1762137798220,73.59085791,184.28,184.24,4.81632469]
[1762137798446,73.59085791,184.28,184.25,0.66]
[1762137799149,73.59085791,184.28,184.26,5.42711386]
[1762137799835,0.2,184.3,184.27,0.66]
[1762137800337,20.792,184.3,184.27,0.66]
[1762137800718,0.2,184.3,184.27,0.66]
[1762137800932,0.2,184.3,184.28,5.42652485]
[1762137801441,0.2,184.3,184.29,0.66]
[1762137803044,0.2,184.3,184.29,6.08623039]
[1762137804418,0.2,184.3,184.29,5.42623039]
[1762137804653,0.2,184.3,184.29,6.08623039]
[1762137805332,0.2,184.3,184.29,5.42623039]
[1762137807449,0.2,184.3,184.28,5.42652485]
[1762137807954,4.87632469,184.3,184.28,5.42652485]
[1762137808134,4.15632469,184.29,184.27,5.42678238]
[1762137808449,1.83185741,184.3,184.27,5.42678238]
[1762137808751,1.83185741,184.3,184.26,5.42696343]
[1762137808924,1.83185741,184.3,184.26,6.10696343]
[1762137809540,1.83185741,184.3,184.26,19.67474808]
[1762137809740,0.2,184.3,184.27,0.68]
[1762137809946,0.2,184.3,184.26,19.67474808]
[1762137810224,1.83185741,184.3,184.26,6.10696343]
[1762137810638,1.63185741,184.29,184.26,5.42696343]
[1762137810844,1.63185741,184.28,184.26,5.42696343]
[1762137811251,102.1,184.27,184.26,5.42696343]
[1762137811554,102.1,184.27,184.25,18.99590757]
[1762137811752,102.1,184.27,184.25,5.42740841]
[1762137811954,103.73185741,184.26,184.23,5.42799761]
[1762137812152,1.63185741,184.24,184.23,5.42799761]
[1762137812748,102.1,184.26,184.23,5.42799761]
[1762137813052,103.73185741,184.26,184.23,5.42799761]
[1762137813652,1.63185741,184.25,184.21,5.42858693]
[1762137813967,1.63185741,184.23,184.21,5.42858693]
[1762137814133,22.22385741,184.22,184.21,5.42858693]
[1762137814335,22.22385741,184.22,184.19,5.42892625]
[1762137814731,22.22385741,184.22,184.18,6.10946186]
[1762137814935,1.63185741,184.2,184.18,5.42946186]
[1762137815727,1.63185741,184.2,184.16,0.68]
[1762137815928,1.63185741,184.19,184.16,0.71]
[1762137816947,1.63185741,184.19,184.14,19.71727706]
[1762137817252,1.63185741,184.18,184.15,0.71]
[1762137817648,1.63185741,184.16,184.14,5.43065059]
[1762137817845,122.692,184.21,184.12,5.43124049]
[1762137817846,1.63185741,184.15,184.12,5.43124049]
[1762137818047,1.63185741,184.13,184.07,5.43271581]
[1762137818365,1.63185741,184.08,184.06,5.43299879]
[1762137818659,1.63185741,184.07,184.06,5.43299879]
[1762137818833,1.63185741,184.07,184.04,5.43337645]
[1762137819035,0.52,184.1,184.04,5.43337645]
[1762137819848,1.63185741,184.07,184.04,5.43337645]
[1762137820345,1.63185741,184.07,184.04,19.01737992]
[1762137820346,4.16513723,184.07,184.04,19.01737992]
[1762137821575,4.16513723,184.07,184.04,19.72737992]
[1762137821736,4.16513723,184.09,184.04,19.72737992]
[1762137822144,20.592,184.11,184.05,4.87513723]
[1762137822353,20.592,184.11,184.06,0.71]
[1762137822552,20.592,184.11,184.08,4.16513723]
[1762137822934,20.592,184.11,184.08,0.71]
[1762137823156,20.592,184.13,184.09,0.71]
[1762137823841,20.592,184.13,184.1,5.43183052]
[1762137824047,25.27713723,184.13,184.1,5.43183052]
[1762137824370,4.16513723,184.11,184.09,5.43211355]
[1762137824558,0.52,184.12,184.09,5.43211355]
[1762137824559,4.16513723,184.12,184.09,5.43211355]
[1762137824862,20.592,184.1,184.09,5.43211355]
[1762137825833,20.592,184.1,184.07,19.01432614]
[1762137826059,20.592,184.1,184.07,19.66432614]
[1762137826467,20.592,184.1,184.08,0.65]
[1762137826761,20.592,184.11,184.09,4.16513723]
[1762137826966,20.592,184.11,184.1,4.81513723]
[1762137827665,20.592,184.11,184.1,0.65]
[1762137828244,20.592,184.11,184.1,6.08183052]
[1762137829470,20.592,184.11,184.1,10.24696775]
[1762137830837,20.592,184.11,184.1,6.08183052]
[1762137831041,20.592,184.11,184.03,4.26513723]
[1762137831042,102.1,184.1,184.04,0.65]
[1762137831338,102.1,184.1,184.04,4.81513723]
[1762137831743,102.1,184.1,184.05,0.65]
[1762137832746,102.1,184.1,184.06,19.0155384]
[1762137832967,102.1,184.1,184.06,23.18067563]
[1762137833180,102.1,184.1,184.07,0.65]
[1762137833477,102.1,184.1,184.09,4.16513723]
[1762137833642,20.592,184.14,184.09,4.81513723]
[1762137833842,20.592,184.14,184.11,4.16513723]
[1762137834042,20.592,184.15,184.12,0.65]
[1762137834256,106.78513723,184.18,184.12,0.65]
[1762137834684,20.592,184.15,184.12,0.65]
[1762137834838,20.592,184.15,184.13,5.43094552]
[1762137835042,106.78513723,184.18,184.13,19.00830933]
[1762137835250,106.78513723,184.18,184.12,4.16513723]
[1762137835251,127.37713723,184.18,184.12,4.16513723]
[1762137835463,127.37713723,184.18,184.11,4.81513723]
[1762137836355,127.37713723,184.18,184.12,5.43112387]
[1762137836356,20.592,184.15,184.12,5.43112387]
[1762137836766,20.592,184.15,184.12,6.08112387]
[1762137837451,20.592,184.13,184.1,5.43174533]
[1762137837768,102.1,184.12,184.1,11.710107]
[1762137837939,102.1,184.12,184.11,6.27836167]
[1762137838143,102.1,184.12,184.11,6.92836167]
[1762137838563,102.1,184.12,184.11,6.08153549]
[1762137841074,102.1,184.12,184.11,12.35989716]
[1762137841575,102.1,184.12,184.11,5.43153549]
[1762137841960,102.1,184.11,184.08,5.43242068]
[1762137842356,102.1,184.1,184.08,13.58105171]
[1762137842750,102.1,184.1,184.07,5.43271581]
[1762137842958,102.1,184.1,184.07,19.66450534]
[1762137843772,55.26259727,184.15,184.09,6.27836167]
[1762137844095,55.26259727,184.15,184.11,6.27836167]
[1762137844278,55.26259727,184.15,184.12,0.65]
[1762137844457,55.26259727,184.15,184.13,5.43094552]
[1762137845966,6.79836167,184.14,184.08,11.71078235]
[1762137846284,55.26259727,184.15,184.09,6.27836167]
[1762137846456,55.26259727,184.15,184.12,6.27836167]
[1762137846653,55.26259727,184.15,184.13,0.7]
[1762137847352,20.592,184.08,184.03,0.1]
[1762137847568,20.592,184.06,184.04,0.7]
[1762137847765,20.592,184.06,184.04,6.97836167]
[1762137848256,20.592,184.1,184.05,0.7]
[1762137848472,6.27836167,184.11,184.06,19.0155384]
[1762137848673,20.592,184.08,184.06,19.0155384]
[1762137848880,20.592,184.08,184.06,19.7155384]
[1762137849576,50.52,184.13,184.07,0.7]
[1762137849782,20.592,184.1,184.07,0.7]
[1762137849977,6.27836167,184.17,184.09,6.27836167]
[1762137850178,6.27836167,184.17,184.06,19.0155384]
[1762137850179,6.27836167,184.17,184.1,0.7]
[1762137850365,6.27836167,184.15,184.11,19.01037422]
[1762137850771,26.87036167,184.16,184.12,0.7]
[1762137850965,26.87036167,184.16,184.11,19.01037422]
[1762137851167,26.87036167,184.16,184.11,19.71037422]
[1762137851782,6.27836167,184.15,184.11,19.71037422]
[1762137852488,61.54095894,184.15,184.11,19.71037422]
[1762137852655,61.54095894,184.15,184.11,19.01037422]
[1762137852656,6.27836167,184.13,184.11,19.01037422]
[1762137853281,6.27836167,184.12,184.11,5.43153549]
[1762137855171,6.27836167,184.12,184.08,19.01276381]
[1762137855387,6.27836167,184.12,184.08,19.71276381]
[1762137856295,6.27836167,184.12,184.06,33.44341654]
[1762137856296,6.27836167,184.09,184.06,5.43301097]
[1762137856494,123.212,184.11,184.06,5.43301097]
[1762137856495,108.37836167,184.08,184.06,5.43301097]
[1762137857087,108.37836167,184.08,184.05,19.01636051]
[1762137857595,108.37836167,184.08,184.05,19.71636051]
[1762137858171,102.1,184.08,184.05,19.71636051]
[1762137858480,102.1,184.08,184.06,6.97836167]
[1762137858689,102.1,184.08,184.07,0.7]
[1762137859480,102.1,184.08,184.07,6.13271581]
[1762137862198,102.1,184.08,184.07,12.41107748]
[1762137863125,64.59210611,184.08,184.07,12.41107748]
[1762137863278,70.592,184.15,184.07,53.15644608]
[1762137863279,6.27836167,184.15,184.07,53.15644608]
[1762137863482,6.27836167,184.14,184.1,5.43183052]
[1762137863812,6.27836167,184.12,184.1,5.43183052]
[1762137864525,20.592,184.13,184.1,6.13183052]
[1762137865208,20.592,184.13,184.1,19.71140683]
[1762137865429,20.592,184.13,184.1,19.01140683]
[1762137865709,26.87036167,184.13,184.09,5.43212559]
[1762137865878,26.87036167,184.13,184.09,6.13212559]
[1762137867396,6.27836167,184.18,184.12,6.27836167]
[1762137867601,70.87046778,184.2,184.14,6.27836167]
[1762137867806,20.592,184.17,184.15,6.97836167]
[1762137868007,70.87046778,184.2,184.15,6.97836167]
[1762137868298,64.59210611,184.2,184.16,6.97836167]
[1762137868484,20.592,184.17,184.16,6.97836167]
[1762137868685,20.592,184.17,184.16,0.7]
[1762137869718,64.59210611,184.2,184.16,6.13006081]
[1762137870011,64.59210611,184.2,184.16,25.98357452]
[1762137870419,64.59210611,184.2,184.17,0.7]
[1762137871121,64.59210611,184.2,184.18,6.27836167]
[1762137871319,64.59210611,184.2,184.18,6.97836167]
[1762137871528,64.59210611,184.2,184.17,6.27836167]
[1762137871712,64.59210611,184.2,184.16,19.00521285]
[1762137871713,64.59210611,184.2,184.19,5.42917639]
[1762137873016,64.59210611,184.2,184.18,5.42944995]
[1762137873517,71.39046778,184.2,184.18,5.42944995]
[1762137873722,70.87046778,184.2,184.18,5.42944995]
[1762137874216,70.87046778,184.2,184.16,19.00521285]
[1762137874424,70.87046778,184.2,184.16,19.70521285]
[1762137877034,6.79836167,184.19,184.16,19.00521285]
[1762137877218,70.87046778,184.2,184.16,19.69521285]
[1762137877606,32.65786349,184.32,184.16,19.69521285]
[1762137877607,4.9730804,184.28,184.17,10.47882769]
[1762137877804,6.27836167,184.25,184.19,6.27836167]
[1762137878006,0.52,184.27,184.2,6.27836167]
[1762137878007,26.87036167,184.26,184.2,6.27836167]
[1762137878218,20.592,184.26,184.22,6.27836167]
[1762137878518,4.52783141,184.29,184.18,0.69]
[1762137878519,0.2,184.29,184.24,6.27836167]
[1762137878709,0.2,184.29,184.18,0.69]
[1762137878710,20.592,184.26,184.23,6.27836167]
[1762137878914,20.592,184.25,184.24,5.42770299]
[1762137879124,0.2,184.29,184.24,6.11770299]
[1762137879323,6.99836167,184.29,184.24,25.27532215]
[1762137879523,20.592,184.26,184.24,25.96532215]
[1762137879811,27.59036167,184.29,184.24,25.96532215]
[1762137880117,27.59036167,184.29,184.24,18.99696048]
[1762137881017,27.59036167,184.29,184.24,25.96532215]
[1762137881218,0.2,184.29,184.26,6.27836167]
[1762137881634,20.792,184.29,184.25,6.27836167]
[1762137881840,20.792,184.29,184.25,0.69]
[1762137882224,27.07036167,184.29,184.25,0.69]
[1762137882533,20.792,184.29,184.25,0.69]
[1762137883133,20.792,184.29,184.26,18.99489851]
[1762137883312,0.2,184.29,184.26,18.99489851]
[1762137883514,0.2,184.29,184.26,25.27326018]
[1762137883856,0.2,184.29,184.27,0.69]
[1762137883857,20.792,184.29,184.27,0.69]
[1762137884016,20.792,184.29,184.26,19.68489851]
[1762137884520,0.2,184.29,184.26,19.68489851]
[1762137886726,0.2,184.29,184.27,0.69]
[1762137887523,0.2,184.29,184.28,5.42652485]
[1762137889321,20.592,184.28,184.27,5.42681934]
[1762137889523,20.592,184.28,184.27,6.11681934]
[1762137890645,0.2,184.29,184.27,6.11681934]
[1762137890839,20.592,184.28,184.27,6.11681934]
[1762137891226,0.2,184.29,184.27,6.11681934]
[1762137892443,0.2,184.3,184.28,6.96836167]
[1762137892940,27.07036167,184.3,184.27,5.42681934]
[1762137893144,27.07036167,184.3,184.27,18.99386769]
[1762137894161,6.27836167,184.28,184.25,5.42740841]
[1762137894445,0.52,184.29,184.22,0.69]
[1762137894446,6.27836167,184.26,184.22,0.69]
[1762137894646,6.27836167,184.27,184.21,25.27769544]
[1762137894842,6.27836167,184.28,184.22,6.96836167]
[1762137895147,6.27836167,184.23,184.19,0.69]
[1762137895322,6.27836167,184.2,184.17,0.69]
[1762137895645,6.27836167,184.2,184.12,6.27836167]
[1762137895646,20.592,184.2,184.12,6.27836167]
[1762137895819,6.27836167,184.18,184.12,6.27836167]
[1762137896022,6.27836167,184.18,184.13,0.69]
[1762137896339,6.27836167,184.19,184.14,19.00727706]
[1762137896533,21.112,184.21,184.14,25.28563873]
[1762137896735,6.27836167,184.19,184.14,19.00727706]
[1762137896931,6.27836167,184.19,184.15,0.69]
[1762137897831,6.27836167,184.18,184.15,0.69]
[1762137898152,21.112,184.21,184.13,0.69]
[1762137898153,6.27836167,184.16,184.13,0.69]
[1762137898454,4.16104205,184.16,184.14,5.43065059]
[1762137898946,4.16104205,184.17,184.14,5.43065059]
[1762137899146,0.52,184.2,184.14,5.43065059]